[Event "4th Tata Steel India Blitz Open 2022"]
[Site "Kolkota"]
[Date "2022.12.04"]
[Round "11.2"]
[White "So, Wesley"]
[Black "Nakamura, Hikaru"]
[Result "0-1"]
[ECO "C54"]
[WhiteElo "2760"]
[BlackElo "2768"]
[Annotator "TA"]
[PlyCount "70"]
[EventDate "2022.11.29"]
[EventType "tourn"]
[EventCountry "IND"]
[SourceTitle "playchess.com"]
[Source "ChessBase"]
[SourceQuality "1"]
[TimeControl "180+2"]

{[%evp 21,70,23,20,18,11,8,17,9,29,0,0,0,3,-9,16,0,60,86,78,89,81,72,78,81,79,79,80,79,74,62,64,68,217,65,63,66,68,50,158,151,139,139,150,144,156,27,21,-335,-337,-316,-310]} 1. e4 {[%emt 0:00:01]} e5 {[%emt 0:00:01]} 2. Nf3 {[%emt 0:00:01]} Nc6 {[%emt 0:00:01]} 3. Bc4 {[%emt 0:00:01]} Nf6 {[%emt 0:00:01]} 4. d3 {[%emt 0:00:01]} Bc5 {[%emt 0:00:01]} 5. O-O {[%emt 0:00:05]} d6 {[%emt 0:00:01]} 6. c3 {[%emt 0:00:01]} a6 {[%emt 0:00:01]} 7. Re1 {[%emt 0:00:02]} O-O {[%emt 0:00:02]} 8. Bb3 {[%emt 0:00:09]} Ba7 {[%emt 0:00:06]} 9. h3 {[%emt 0:00:12]} h6 {[%emt 0:00:05]} 10. Nbd2 {[%emt 0:00:01][%cal Bb1d2,Bd2f1,Bf1g3][%mdl 32]} Re8 {[%emt 0:00:07]} 11. Nf1 {[%emt 0:00:02]} Be6 {[%emt 0:00:01]} 12. Bc2 {[%emt 0:00:01] C54: Giuoco Piano: 4 c3 Nf6, main lines with 5 d4 and 5 d3.} (12. Bxe6 {simplifies} Rxe6 13. Be3 Bxe3 14. Nxe3 d5 15. Qc2) 12... d5 {[%emt 0:00:14]} 13. exd5 {[%emt 0:00:01]} Bxd5 {[%emt 0:00:01] 13...Bxd5 scores better than 13...Nxd5.} (13... Qxd5 {is more complex.} 14. Ng3 a5 15. a3 b5) (13... Nxd5 14. Ng3 Qd6 15. Nh4 Rad8 16. Nhf5 Bxf5 17. Nxf5 Qf6 18. Qg4 h5 19. Qg5 Qxg5 20. Bxg5 f6 21. Bd2 g6 22. Ng3 Kg7 23. a4 {1-0 (60) So,W (2773)-Nakamura,H (2768) Chess.com INT 2022}) 14. Ng3 {[%emt 0:00:09] The position is equal.} Qd6 {[%emt 0:00:03]} 15. Be3 {[%emt 0:00:11]} (15. Bd2 {feels hotter.} a5 16. Nf5 Qd8 17. N3h4) 15... Bxe3 {[%emt 0:00:56]} 16. Rxe3 {[%emt 0:00:01]} g6 {[%emt 0:00:06] [#]} 17. Qd2 $146 {[%emt 0:00:16]} ({Predecessor:} 17. a4 a5 18. Qe2 Rad8 19. Rc1 Bxf3 20. Qxf3 Kg7 21. Bb3 Qd7 22. Bc4 Re7 23. Bb5 {1-0 (54) Nestorovic,N (2504)-Abramovic,B (2401) Zrenjanin 2018}) 17... Bxf3 {[%emt 0:00:18]} 18. Rxf3 {[%emt 0:00:02]} e4 {[%emt 0:00:09]} ({Black should play} 18... Kg7 $11) 19. Re3 $14 {[%emt 0:00:22]} exd3 {[%emt 0:00:17]} 20. Rxd3 {[%emt 0:00:01][%mdl 64] [#] Discovered Attack} Qf8 {[%emt 0:00:02]} 21. Qf4 {[%emt 0:00:09][%csl LRc7,LRf6]} Kg7 {[%emt 0:00:16]} 22. Qxc7 {[%emt 0:00:12]} (22. Rf3 Nd5 23. Nf5+ Kh7 $11) 22... Ne5 {[%emt 0:00:03]} 23. Rd4 {[%emt 0:00:18]} b5 {[%emt 0:00:09]} 24. Bb3 {[%emt 0:00:07]} (24. Ne4 {simplifies} Rac8 25. Qd6 Nxe4 26. Qxf8+ Rxf8 27. Bxe4 Rfd8 28. Rad1) 24... a5 {[%emt 0:00:04]} 25. Ne4 {[%emt 0:00:26] Strongly threatening Nxf6.} Rac8 $1 {[%emt 0:00:02]} 26. Qb6 {[%emt 0:00:18]} (26. Qxa5 Nc6 27. Qb6 Nxe4 $17) 26... Ned7 {[%emt 0:00:14] [#]} (26... Nxe4 $14 27. Rxe4 Nd7 28. Rxe8 (28. Qxa5 $2 {perishes.} Rxe4 29. Qxb5 Qe7 $19) (28. Qd4+ Nf6 $14) 28... Nxb6 29. Rxf8 Kxf8) 27. Rxd7 $1 {[%emt 0:00:08][%mdl 512]} Nxd7 {[%emt 0:00:01]} 28. Qd4+ {[%emt 0:00:01]} Ne5 $1 {[%emt 0:00:01]} 29. Nd6 {[%emt 0:00:07]} (29. f4 {looks sharper.} Rcd8 30. Bd5 f6 31. fxe5 Rxe5 32. c4) 29... Rcd8 {[%emt 0:00:02]} (29... Red8 $1 $14 30. Rd1 (30. Qxe5+ f6 $14) 30... Qxd6 31. Qxd6 Rxd6 32. Rxd6 a4) 30. Nxe8+ $16 {[%emt 0:00:04]} Qxe8 {[%emt 0:00:01]} 31. Bd5 {[%emt 0:00:13]} g5 {[%emt 0:00:00]} 32. Rd1 {[%emt 0:00:04]} Qe7 {[%emt 0:00:04]} 33. f4 {[%emt 0:00:02]} (33. g3 $16) 33... gxf4 $11 {[%emt 0:00:01][%mdl 64] Deflection} 34. Qxf4 $2 {[%emt 0:00:01][%mdl 8192]} (34. b3 $11) 34... Qc5+ $19 {[%emt 0:00:01]} 35. Qd4 {[%emt 0:00:01]} Rxd5 {[%emt 0:00:01][%mdl 64] Pin.   Weighted Error Value: White=0.39/Black=0.18 (very precise)} 0-1

[Event "4th Tata Steel India Blitz Open 2022"]
[Site "Kolkota"]
[Date "2022.12.04"]
[Round "11.3"]
[White "Vidit, Santosh Gujrathi"]
[Black "Erigaisi Arjun"]
[Result "0-1"]
[ECO "D35"]
[WhiteElo "2724"]
[BlackElo "2718"]
[Annotator "TA"]
[PlyCount "152"]
[EventDate "2022.11.29"]
[EventType "tourn"]
[EventCountry "IND"]
[SourceTitle "playchess.com"]
[Source "ChessBase"]
[SourceQuality "1"]
[TimeControl "180+2"]

{[%evp 11,152,-11,-7,-3,-9,-8,-10,-18,0,-23,0,-25,0,0,0,-23,-35,-35,-33,-31,-12,-23,12,2,37,15,54,3,47,0,10,0,0,0,0,-39,0,-8,0,0,78,61,100,31,95,20,80,81,92,79,85,62,72,73,57,-99,57,60,97,109,95,-161,-169,-405,-390,-428,-369,-365,-343,-499,-404,-428,-428,-500,-491,-480,-420,-409,-405,-386,-382,-660,-645,-581,-408,-481,-440,-557,-541,-555,-350,-389,-376,-470,-447,-616,0,-522,-394,-700,-435,-411,-335,-319,-331,-385,-377,-500,-497,-578,-568,-825,-935,-1140,-1149,-991,-962,-29983,-1317,-936,-645,-887,-810,-29989,-29990,-29990,-29978,-29978,-29979,-29979,-29980,-29980,-29981,-29981,-29982,-29982,-29983,-29983,-29984,-29984,-29985,-29985,-29977]} 1. d4 {[%emt 0:00:01]} d5 {[%emt 0:00:01]} 2. c4 {[%emt 0:00:01]} e6 {[%emt 0:00:01]} 3. Nf3 {[%emt 0:00:01]} Nf6 {[%emt 0:00:01]} 4. e3 {[%emt 0:00:04]} b6 {[%emt 0:00:03]} 5. Nc3 {[%emt 0:00:03]} Bd6 {[%emt 0:00:02]} 6. cxd5 {[%emt 0:00:03]} exd5 {[%emt 0:00:02]} 7. Bb5+ {[%emt 0:00:01] is more profitable than 7.Bd3 at the moment. D35: Queen's Gambit Declined: Exchange Variation.} c6 {[%emt 0:00:02]} 8. Bd3 {[%emt 0:00:01]} O-O {[%emt 0:00:02]} 9. O-O {[%emt 0:00:02] The position is equal.} Re8 {[%emt 0:00:02] Inhibits e4.} 10. Qc2 {[%emt 0:00:04]} Bg4 {[%emt 0:00:09] [#]} 11. Be2 $146 {[%emt 0:00:28]} ({Predecessor:} 11. Bd2 Nbd7 12. Ne2 c5 13. Bf5 Bxf3 14. gxf3 Nf8 15. f4 Ng6 16. Ng3 cxd4 17. Kh1 dxe3 18. fxe3 {1-0 (63) Vidit,S (2710)-Wang,H (2722) Shusha 2022}) 11... c5 {[%emt 0:00:09]} 12. h3 {[%emt 0:00:10]} Bh5 {[%emt 0:00:03]} 13. Rd1 {[%emt 0:00:04]} (13. Bb5 $5) 13... Nc6 {[%emt 0:00:08]} 14. Qa4 {[%emt 0:00:24] Strongly threatening dxc5.} Rc8 {[%emt 0:00:16]} 15. Bd2 {[%emt 0:00:15]} Bb8 {[%emt 0:00:22]} 16. Kf1 {[%emt 0:00:12]} c4 {[%emt 0:00:12]} 17. b3 {[%emt 0:00:10]} Na5 {[%emt 0:00:08]} 18. Rac1 {[%emt 0:00:05]} Bg6 {[%emt 0:00:17]} 19. Be1 {[%emt 0:00:08]} (19. Nh4 $1 $14) 19... a6 {[%emt 0:00:16]} 20. Ne5 {[%emt 0:00:10]} Bf5 {[%emt 0:00:18]} 21. b4 {[%emt 0:00:23]} Nb7 {[%emt 0:00:07]} 22. Qxa6 {[%emt 0:00:19]} Nd6 {[%emt 0:00:01]} 23. b5 {[%emt 0:00:05]} Bc7 {[%emt 0:00:04][%mdl 1024] Threatens to win with ...Ra8. Black has compensation.} 24. Qa3 {[%emt 0:00:03]} Ra8 {[%emt 0:00:05] Against f3} 25. Qb2 {[%emt 0:00:01]} Qc8 {[%emt 0:00:04]} (25... Nde4 $11 {keeps the balance.}) 26. Kg1 {[%emt 0:00:07]} Be6 {[%emt 0:00:06]} 27. Bf1 {[%emt 0:00:03]} ({White should try} 27. f3 $16) 27... h5 {[%emt 0:00:04]} (27... Nfe4 $14) 28. a4 {[%emt 0:00:03]} (28. f3 $16) 28... Nf5 {[%emt 0:00:06]} (28... Nfe4 $11 {remains equal.}) 29. Ra1 $16 {[%emt 0:00:06]} Bd6 {[%emt 0:00:05]} 30. Rdc1 {[%emt 0:00:06]} Qc7 {[%emt 0:00:03]} 31. Nf3 {[%emt 0:00:07]} Ne7 {[%emt 0:00:08]} 32. Ng5 {[%emt 0:00:01]} Bf5 {[%emt 0:00:03]} 33. Qe2 $2 {[%emt 0:00:04]} (33. h4 $14 {stays ahead.}) 33... Bg6 $2 {[%emt 0:00:06]} (33... Bd3 $17 34. Qf3 Bh2+ 35. Kh1 Bxf1) 34. g3 $14 {[%emt 0:00:02]} h4 {[%emt 0:00:05][%cal Rh4g3] [#]} 35. g4 {[%emt 0:00:02]} Bh2+ {[%emt 0:00:15] [#]} 36. Kh1 $2 {[%emt 0:00:01][%mdl 8192]} (36. Kg2 $1 $16 {is necessary to keep the advantage.}) 36... Bd3 $36 {[%emt 0:00:01][%mdl 2112] Skewer, Deflection. Keeping White busy. White is on the road to losing.} 37. Qf3 {[%emt 0:00:08]} (37. Qd1 Bxf1 38. f4) 37... Bxf1 {[%emt 0:00:02]} 38. a5 {[%emt 0:00:04]} Bd6 {[%emt 0:00:07]} (38... bxa5 $2 39. b6 Qb8 40. Bd2 $19) 39. a6 {[%emt 0:00:03]} Qd7 {[%emt 0:00:05]} 40. Na4 {[%emt 0:00:03]} (40. Rc2 $142) 40... Bc7 {[%emt 0:00:02]} 41. Bb4 {[%emt 0:00:01]} Bd3 {[%emt 0:00:01]} (41... Qxb5 42. Bxe7 Rxe7 43. Rxf1 $17) 42. Bxe7 {[%emt 0:00:02]} Qxe7 {[%emt 0:00:01]} 43. Nc3 {[%emt 0:00:01]} Qd6 {[%emt 0:00:02][%csl Gc7][%cal Rd6h2]} 44. Qg2 {[%emt 0:00:01] Inhibits Qh2+.} Bg6 {[%emt 0:00:02]} 45. Re1 {[%emt 0:00:01]} Qd7 {[%emt 0:00:02]} 46. Nf3 $2 {[%emt 0:00:03]} (46. Rec1) 46... Ne4 {[%emt 0:00:01]} 47. Ne2 {[%emt 0:00:02]} Qe7 {[%emt 0:00:02]} 48. Rab1 {[%emt 0:00:02][%cal Ba1b1,Bb1b2,Bb2c2,Bc2c1][%mdl 32]} Nd6 {[%emt 0:00:02]} 49. Rb2 {[%emt 0:00:02]} Bd3 {[%emt 0:00:02]} 50. Nc3 {[%emt 0:00:01]} Be4 {[%emt 0:00:03]} 51. Nxe4 {[%emt 0:00:01]} Nxe4 {[%emt 0:00:02]} 52. Rc1 {[%emt 0:00:03]} Qa3 {[%emt 0:00:02]} 53. Rbc2 {[%emt 0:00:04]} Qe7 $2 {[%emt 0:00:03]} ({Better is} 53... Qb3 $19 54. Nd2 Nxd2 55. Qxd5 Qd3) 54. g5 $2 {[%emt 0:00:01][%mdl 8192]} (54. Rb2 $1 $11 {and White stays safe.} g6 55. Kg1) 54... Qd7 {[%emt 0:00:03]} 55. Kg1 $2 {[%emt 0:00:02]} (55. Rb1) 55... g6 {[%emt 0:00:02]} 56. Rb1 {[%emt 0:00:01]} Nd6 {[%emt 0:00:03]} 57. Ne5 {[%emt 0:00:03]} Qf5 {[%emt 0:00:01]} 58. Rcc1 {[%emt 0:00:02]} Ne4 {[%emt 0:00:02]} 59. f4 {[%emt 0:00:03]} Bxe5 {[%emt 0:00:03]} 60. dxe5 {[%emt 0:00:01]} Qc8 {[%emt 0:00:03]} 61. Rd1 {[%emt 0:00:01]} Nc3 {[%emt 0:00:01][%csl LRb1,LRd1] ...Qc5 is the strong threat.} 62. Rbc1 {[%emt 0:00:05]} Nxd1 {[%emt 0:00:01]} 63. Rxd1 c3 {[%emt 0:00:02]} 64. Qxd5 {[%emt 0:00:05]} Qc7 {[%emt 0:00:01]} (64... Rd8 $142 65. Qf3 Rxd1+ 66. Qxd1 Qxh3 67. Qa1 Qg3+ 68. Kh1 c2 69. e6 h3 70. exf7+ Kh7 71. Qf1 c1=Q 72. f8=N+ Rxf8 73. Qxc1 Qg2#) 65. Rc1 {[%emt 0:00:02]} Red8 {[%emt 0:00:01]} 66. Qe4 {[%emt 0:00:01]} Qd7 {[%emt 0:00:05]} 67. Rc2 {[%emt 0:00:04]} Qd1+ {[%emt 0:00:02] Black mates.} 68. Kf2 {[%emt 0:00:01]} Qxc2+ {[%emt 0:00:03]} 69. Qxc2 {[%emt 0:00:01]} Rd2+ {[%emt 0:00:01]} 70. Qxd2 {[%emt 0:00:01]} cxd2 {[%emt 0:00:01] KR-KP} 71. Ke2 {[%emt 0:00:01]} Rd8 {[%emt 0:00:02]} 72. Kd1 {[%emt 0:00:01]} Kf8 {[%emt 0:00:01]} 73. e4 {[%emt 0:00:03]} Rd4 {[%emt 0:00:03]} 74. a7 {[%emt 0:00:03]} Ra4 {[%emt 0:00:02]} ({Much less strong is} 74... Rxe4 75. a8=Q+ (75. a8=B $2 Rxf4 76. Kxd2 Rf5 $19) 75... Ke7 76. Qxe4 Ke8 77. Qd3 Ke7 78. Qd6+ Ke8 79. Kxd2 f5 80. gxf6 Kf7 81. Qe7+ Kg8 82. Qg7#) 75. Kxd2 {[%emt 0:00:01]} Rxa7 {[%emt 0:00:01]} ({Resist} 75... Rxe4 76. a8=Q+ (76. a8=B $2 {too greedy.} Rxf4 77. Ke3 Rf5 $19) 76... Kg7 77. Qxe4 Kf8 78. Qa8+ Ke7 79. Qc8 f5 80. gxf6+ Kf7 81. Qd7+ Kf8 82. Qg7+ Ke8 83. Qe7#) 76. Kd3 {[%emt 0:00:01]} Ra3+ {[%emt 0:00:01] Weighted Error Value: White=0.58/Black=0.48} 0-1

[Event "4th Tata Steel India Blitz Open 2022"]
[Site "Kolkota"]
[Date "2022.12.04"]
[Round "11.4"]
[White "Gukesh D"]
[Black "Maghsoodloo, Parham"]
[Result "1-0"]
[ECO "A37"]
[WhiteElo "2725"]
[BlackElo "2720"]
[Annotator "TA"]
[PlyCount "79"]
[EventDate "2022.11.29"]
[EventType "tourn"]
[EventCountry "IND"]
[SourceTitle "playchess.com"]
[Source "ChessBase"]
[SourceQuality "1"]
[TimeControl "180+2"]

{[%evp 13,79,25,37,50,40,42,60,28,53,14,23,-29,26,18,63,47,43,82,85,71,129,130,165,127,222,223,280,275,252,131,130,131,129,135,352,373,371,379,437,281,277,229,238,221,232,211,206,181,295,285,300,288,652,652,628,628,780,775,763,777,834,806,834,834,823,823,1153,1094]} 1. Nf3 {[%emt 0:00:02]} c5 {[%emt 0:00:01]} 2. g3 {[%emt 0:00:04]} Nc6 {[%emt 0:00:04]} 3. Bg2 {[%emt 0:00:01]} g6 {[%emt 0:00:04]} 4. O-O {[%emt 0:00:06]} Bg7 {[%emt 0:00:02]} 5. c4 {[%emt 0:00:01]} a6 {[%emt 0:00:04]} 6. Nc3 {[%emt 0:00:03]} Rb8 {[%emt 0:00:02]} 7. e3 {[%emt 0:00:06]} b5 {[%emt 0:00:01]} 8. cxb5 {[%emt 0:00:02] A37: Symmetrical English vs ...g6: 4 Bg2 Bg7 5 Nf3.} axb5 {[%emt 0:00:01]} 9. d4 {[%emt 0:00:01]} b4 {[%emt 0:00:02]} 10. Ne4 {[%emt 0:00:03] [#] White is slightly better.} c4 $146 {[%emt 0:00:26]} ({Predecessor:} 10... cxd4 11. exd4 Nf6 12. Nxf6+ Bxf6 13. Bh6 d5 14. Re1 Qb6 15. Rc1 e6 16. Ne5 Nxe5 17. dxe5 {1-0 (38) Arabidze,M (2441)-Ekdyshman,M (2315) Chess.com INT 2021}) 11. d5 {[%emt 0:00:15]} Na5 {[%emt 0:00:02]} 12. Rb1 {[%emt 0:00:38]} (12. Qa4 $142) 12... Nh6 {[%emt 0:00:13]} (12... Qb6 $142 $1) 13. Bd2 $11 {[%emt 0:00:09]} O-O {[%emt 0:00:53]} 14. Qa4 $36 {[%emt 0:00:29][%mdl 2048] White has some pressure. White is more active.} Qb6 {[%emt 0:00:02]} 15. a3 {[%emt 0:00:05][%cal Rd2b4]} Nb3 {[%emt 0:00:07]} 16. Bxb4 {[%emt 0:00:04]} (16. Qxb4 $6 f5 17. Qxb6 Rxb6 $11) 16... d6 {[%emt 0:00:23] [#]} ({Better is} 16... Ba6 17. Bxe7 Rfe8) 17. Ned2 $1 $16 {[%emt 0:00:08]} Nc5 {[%emt 0:00:17]} 18. Qc2 {[%emt 0:00:16]} Nd3 {[%emt 0:00:04]} (18... Qb5 $16) 19. Bc3 $18 {[%emt 0:00:06]} ({Weaker is} 19. Nxc4 Nxb4 20. axb4 Qxb4 $16) (19. Qxc4 Ba6 20. Qe4 Nxb4 21. axb4 Bxf1 22. Bxf1 Qxb4 23. Qxe7 Nf5 $15) 19... Ba6 {[%emt 0:00:13]} 20. Bxg7 {[%emt 0:00:09]} Kxg7 {[%emt 0:00:13]} 21. Nxc4 {[%emt 0:00:13]} (21. Nd4 $18) 21... Qb3 $16 {[%emt 0:00:00] Prevents b4.} 22. Qxb3 {[%emt 0:00:12]} Rxb3 {[%emt 0:00:00]} 23. Na5 {[%emt 0:00:14]} Rb6 {[%emt 0:00:00] [#] This costs Black the game.} (23... Rxb2 $16 {was called for.} 24. Rxb2 Nxb2) 24. b4 $18 {[%emt 0:00:03]} Rc8 {[%emt 0:00:00]} 25. Nc6 {[%emt 0:00:02]} e5 {[%emt 0:00:00]} 26. Rfd1 {[%emt 0:00:01][%cal Bf1d1,Bd1d2,Bd2d4,Bd4d6][%mdl 32]} Ng4 {[%emt 0:00:00]} 27. Rd2 {[%emt 0:00:02] Hoping for a4.} Nf6 {[%emt 0:00:07]} 28. Ne1 {[%emt 0:00:07]} e4 {[%emt 0:00:05]} 29. Nxd3 {[%emt 0:00:05]} Bxd3 {[%emt 0:00:01]} 30. Rbd1 {[%emt 0:00:02]} Bc4 {[%emt 0:00:20]} (30... Ra6 $142 31. Ra1 Rca8) 31. Rd4 {[%emt 0:00:02]} Bb3 {[%emt 0:00:01]} 32. Rb1 {[%emt 0:00:03]} Bxd5 {[%emt 0:00:03]} (32... Bc2) 33. Ne7 $1 {[%emt 0:00:01][%csl LRc8,LRd5] White is clearly winning.} Rc5 {[%emt 0:00:09]} 34. Rbd1 {[%emt 0:00:07]} Bb3 {[%emt 0:00:05]} 35. bxc5 {[%emt 0:00:01]} dxc5 {[%emt 0:00:01]} 36. Rd6 {[%emt 0:00:01]} Rb7 {[%emt 0:00:00]} 37. Rb1 {[%emt 0:00:00]} c4 {[%emt 0:00:03]} 38. Nd5 {[%emt 0:00:03]} Nxd5 {[%emt 0:00:06]} 39. Rxd5 {[%emt 0:00:01]} c3 {[%emt 0:00:01]} 40. Rc5 {[%emt 0:00:01] Weighted Error Value: White=0.21 (precise) /Black=0.47} ({Worse is} 40. Bxe4 Bxd5 41. Rxb7 Bxb7 $11) 1-0

[Event "4th Tata Steel India Blitz Open 2022"]
[Site "Kolkota"]
[Date "2022.12.04"]
[Round "11.5"]
[White "Rameshbabu, Praggnanandhaa"]
[Black "Mamedyarov, Shakhriyar"]
[Result "1/2-1/2"]
[ECO "A26"]
[WhiteElo "2678"]
[BlackElo "2741"]
[Annotator "TA"]
[PlyCount "117"]
[EventDate "2022.11.29"]
[EventType "tourn"]
[EventCountry "IND"]
[SourceTitle "playchess.com"]
[Source "ChessBase"]
[SourceQuality "1"]
[TimeControl "180+2"]

{[%evp 23,117,-12,0,-14,-16,-15,-13,-16,-14,-24,-17,-27,-12,-10,-13,-15,0,-24,3,-25,2,0,0,-39,-18,-30,-14,-17,52,-14,-14,-14,0,0,23,22,20,30,20,20,24,26,58,0,0,0,0,0,0,0,0,0,0,0,0,0,0,0,0,0,0,0,0,0,0,0,8,0,0,-25,-25,-29968,-29969,-29968,-29969,-29969,-29970,-29965,-29960,-29960,-491,-489,-296,-489,-137,-137,-138,-139,-148,-137,-145,-145,0,0,0,0]} 1. Nf3 {[%emt 0:00:02]} Nf6 {[%emt 0:00:02]} 2. g3 {[%emt 0:00:00]} g6 {[%emt 0:00:03]} 3. Bg2 {[%emt 0:00:02]} Bg7 {[%emt 0:00:03]} 4. O-O {[%emt 0:00:02]} O-O {[%emt 0:00:03]} 5. c4 {[%emt 0:00:01]} d6 {[%emt 0:00:07]} 6. Nc3 {[%emt 0:00:06]} e5 {[%emt 0:00:01]} 7. d3 {[%emt 0:00:00]} Nc6 {[%emt 0:00:07]} 8. Rb1 {[%emt 0:00:01]} a5 {[%emt 0:00:01]} 9. a3 {[%emt 0:00:01]} Re8 {[%emt 0:00:02]} 10. Bg5 {[%emt 0:00:09]} h6 {[%emt 0:00:01]} 11. Bxf6 {[%emt 0:00:01]} Bxf6 {[%emt 0:00:01]} 12. Nd2 {[%emt 0:00:02]} Bg7 {[%emt 0:00:04]} 13. Nd5 {[%emt 0:00:03] A26: English Opening vs King's Indian with ...Nc6 and d3.} Ne7 {[%emt 0:00:05]} 14. b4 {[%emt 0:00:02]} axb4 {[%emt 0:00:02]} (14... Nxd5 {simplifies} 15. cxd5 axb4 16. axb4 Bd7) 15. axb4 {[%emt 0:00:01]} c6 {[%emt 0:00:05]} 16. Nxe7+ {[%emt 0:00:03]} Rxe7 {[%emt 0:00:02]} 17. b5 {[%emt 0:00:01]} d5 {[%emt 0:00:02] [#]} 18. Qc2 $146 {[%emt 0:00:16]} ({Predecessor:} 18. Qb3 Be6 19. Rfc1 Kh7 20. Rc2 f5 21. bxc6 bxc6 22. Qb6 Qe8 23. cxd5 cxd5 24. Qc6 {1-0 (74) Varga,P (2402)-Kukula,P (2211) Katowice 2015}) 18... Be6 {[%emt 0:00:16]} 19. Rfc1 {[%emt 0:00:09]} f5 {[%emt 0:00:15]} 20. Nb3 {[%emt 0:00:33]} e4 {[%emt 0:00:10]} 21. Rd1 {[%emt 0:00:33][%cal Rd3e4]} Qe8 {[%emt 0:00:15]} 22. cxd5 {[%emt 0:00:25]} cxd5 {[%emt 0:00:02]} 23. dxe4 {[%emt 0:00:01]} dxe4 {[%emt 0:00:02]} (23... Rc8 $5 {[%cal Rc8c2]} 24. Qd2 dxe4 $15) 24. Nd4 {[%emt 0:00:01]} Rc8 {[%emt 0:00:18]} 25. Qa4 {[%emt 0:00:32]} Bc4 {[%emt 0:00:21] [#]} (25... Bf7 $11) 26. e3 {[%emt 0:00:05]} ({White should try} 26. Nc6 $1 $14) 26... Bd3 $11 {[%emt 0:00:09] A strong pair of Bishops.} 27. Rbc1 {[%emt 0:00:01]} Rd8 {[%emt 0:00:24]} 28. Bf1 {[%emt 0:00:10]} Bxd4 {[%emt 0:00:16]} 29. Bxd3 {[%emt 0:00:14] aiming for Bc4+.} exd3 {[%emt 0:00:02]} (29... Be5 {simplifies} 30. Be2 h5 31. Rxd8 Qxd8 32. Rd1 Qc8) 30. exd4 {[%emt 0:00:01]} d2 {[%emt 0:00:04]} 31. Qa2+ {[%emt 0:00:04]} (31. Rxd2 $2 Re1+ 32. Rxe1 Qxe1+ 33. Kg2 Qxd2 $19) 31... Kh7 {[%emt 0:00:08]} 32. Rxd2 {[%emt 0:00:07]} f4 {[%emt 0:00:01]} 33. gxf4 {[%emt 0:00:06]} (33. Qb3 $14) 33... Re1+ {[%emt 0:00:02]} 34. Rxe1 {[%emt 0:00:01]} Qxe1+ {[%emt 0:00:01][%mdl 4096] Endgame KQR-KQR} 35. Kg2 {[%emt 0:00:01] Strongly threatening Re2.} Qe4+ {[%emt 0:00:02]} 36. Kg3 {[%emt 0:00:04] Threatens to win with Qf7+.} Rf8 {[%emt 0:00:01] Against Qf7+} (36... Rxd4 37. Qf7+ Kh8 38. Qf6+ Kg8 39. Rxd4 Qe8 40. Rd8) 37. h3 {[%emt 0:00:10]} h5 {[%emt 0:00:12]} 38. Re2 {[%emt 0:00:03]} h4+ {[%emt 0:00:01]} (38... Qxd4 39. Qd2 Qf6 40. Re5 $16) 39. Kh2 $1 {[%emt 0:00:01]} Qxf4+ {[%emt 0:00:01]} ({But not} 39... Qxd4 40. Qd2 Qxf4+ 41. Qxf4 Rxf4 42. Re7+ Kg8 43. Kg2 $16 (43. Rxb7 Rxf2+ 44. Kg1 Rb2 $11)) 40. Kg1 {[%emt 0:00:01]} Qg5+ {[%emt 0:00:11]} 41. Kh2 {[%emt 0:00:03]} Qf4+ {[%emt 0:00:02]} 42. Kg1 {[%emt 0:00:01]} Qg5+ {[%emt 0:00:00]} 43. Kh2 {[%emt 0:00:02]} Qf4+ {[%emt 0:00:05]} 44. Kg1 {[%emt 0:00:01]} Qxd4 {[%emt 0:00:03]} 45. Qe6 {[%emt 0:00:04]} (45. Qd2 {simplifies} Qxd2 46. Rxd2 Rf7 47. Rd4) 45... Kh6 {[%emt 0:00:03]} 46. Qe7 {[%emt 0:00:02]} Rf5 {[%emt 0:00:03]} 47. Qe8 $2 {[%emt 0:00:03][%mdl 8192] [#]} (47. Qe4 $11 Qf6 48. b6) 47... Rg5+ {[%emt 0:00:02]} 48. Kf1 {[%emt 0:00:03]} Qd1+ {[%emt 0:00:01]} 49. Re1 {[%emt 0:00:01]} Qd3+ {[%emt 0:00:00]} 50. Re2 {[%emt 0:00:00]} Qxh3+ {[%emt 0:00:02]} ({Resist} 50... Rxb5 51. Qh8+ Kg5 52. f4+ Kxf4 53. Qf6+ Qf5 54. Qxh4+ Kf3 55. Qf2#) 51. Ke1 {[%emt 0:00:00]} Qc3+ {[%emt 0:00:01]} (51... Qh1+ $142 52. Kd2 Rd5+ 53. Ke3 Qc1+ 54. Ke4 Rf5 55. Qe6 h3 56. Kd3 h2 57. Re1 Qa3+ 58. Ke2 Qf3+ 59. Kd2 Qxf2+ 60. Kd3 Rf3+ 61. Kc4 Qc2+ 62. Kd5 Rd3+ 63. Ke4 Qc3 64. Qd5 Re3+ 65. Kf4 Rxe1 66. Qg5+ Kg7 67. Qg2 Qe3+ 68. Kg4 Rg1 69. Kh4 Rxg2 70. b6 h1=Q#) 52. Kf1 $19 {[%emt 0:00:01]} Rf5 {[%emt 0:00:09] Hoping for ...Qh3+.} 53. Re3 {[%emt 0:00:04] Inhibits Qh3+.} (53. Qe4 {was worth a try.} Qh3+ 54. Ke1) 53... Qc2 $2 {[%emt 0:00:04]} (53... Qb2 $19 {[%csl Gf5][%cal Rb2f2]} 54. Re2 Qc1+ 55. Re1 Qc4+ 56. Re2 Rxb5 57. Qf8+ Kh5 58. Qf3+ Qg4) 54. Qh8+ $17 {[%emt 0:00:01]} Kg5 {[%emt 0:00:02][%csl Gf5][%cal Rc2f2]} 55. Qd8+ {[%emt 0:00:01]} Kh5 {[%emt 0:00:02][%csl Gf5][%cal Rc2f2]} 56. Qh8+ {[%emt 0:00:03]} Kg4 {[%emt 0:00:03][%csl Gf5][%cal Rc2f2]} 57. Qd4+ {[%emt 0:00:01]} Kh5 {[%emt 0:00:02]} (57... Rf4 $17 {[%csl Gf4][%cal Rc2f2]} 58. Qd7+ Qf5 59. Qd1+ Kg5) 58. Qh8+ $1 $11 {[%emt 0:00:02]} Kg5 {[%emt 0:00:04][%csl Gf5][%cal Rc2f2]} 59. Qd8+ {[%emt 0:00:01] Weighted Error Value: White=0.25 (precise) /Black=0.40} 1/2-1/2